[Event "Olomouc Chess Summer-IM 2022"]
[Site "Olomouc"]
[Date "2022.08.20"]
[Round "9.13"]
[White "Camarena Jimenez, Rufino"]
[Black "Saypuri Srithan"]
[Result "1-0"]
[ECO "E92"]
[WhiteElo "2298"]
[BlackElo "1923"]
[Annotator "TA"]
[PlyCount "75"]
[EventDate "2022.08.10"]
[EventCountry "CZE"]
[SourceTitle "playchess.com"]
[Source "ChessBase"]
[SourceQuality "1"]
[TimeControl "40/5400+30:1800+30"]

{[%evp 16,75,36,18,11,13,0,14,75,64,77,77,56,40,105,97,89,37,52,35,53,66,53,58,89,84,97,99,122,122,121,116,129,110,104,107,137,137,157,137,155,137,345,352,328,328,401,388,427,447,434,431,423,383,506,431,412,390,676,655,628,614]} 1. d4 {[%emt 0:00:03]} Nf6 {[%emt 0:13:51]} 2. c4 {[%emt 0:00:09]} g6 {[%emt 0:00:06]} 3. Nc3 {[%emt 0:00:08]} Bg7 {[%emt 0:00:05]} 4. e4 {[%emt 0:00:05]} d6 {[%emt 0:00:02]} 5. Nf3 {[%emt 0:00:17]} O-O {[%emt 0:00:08]} 6. Be2 {[%emt 0:00:08]} e5 {[%emt 0:00:05]} 7. d5 {[%emt 0:00:07]} Na6 {[%emt 0:01:07]} 8. Bg5 {[%emt 0:03:08]} h6 {[%emt 0:01:01]} 9. Bh4 {[%emt 0:00:06]} g5 {[%emt 0:05:32] E92: King's Indian: Classical: 6 Be2 e5: 7 dxe5, 7 Be3 and Petrosian System without 7...Nbd7.} 10. Bg3 {[%emt 0:00:11]} Nh5 {[%emt 0:00:08]} 11. Nd2 {[%emt 0:00:54]} Nxg3 {[%emt 0:00:20]} (11... Nf4 $1 $11) 12. hxg3 $16 {[%emt 0:00:27]} f5 {[%emt 0:00:04] [#]} 13. exf5 $1 {[%emt 0:18:24]} Bxf5 {[%emt 0:00:16][%cal Oe5e4]} 14. Nde4 {[%emt 0:01:21]} (14. g4 $5 {[%cal Rg4f5]} Bg6 15. Nde4 $11) 14... b6 {[%emt 0:00:19] [#]} (14... Nc5 $14 15. Nxc5 dxc5) 15. Bd3 $146 {[%emt 0:02:12] White is more active.} ({Predecessor:} 15. Bg4 Bxg4 16. Qxg4 Qc8 17. Qxc8 Rfxc8 18. Kd2 Nc5 19. b4 Nxe4+ 20. Nxe4 a5 21. a3 axb4 22. axb4 Rxa1 23. Rxa1 {1-0 (44) Tancik,K (2248)-Kumic,F (1969) Subotica 2010}) 15... Qd7 {[%emt 0:03:57]} 16. O-O {[%emt 0:10:34]} (16. Bc2 $16) 16... Nc5 {[%emt 0:06:51]} 17. Bc2 {[%emt 0:00:10]} Rf7 {[%emt 0:06:27]} 18. b4 {[%emt 0:00:48]} Nxe4 {[%emt 0:01:57]} 19. Bxe4 {[%emt 0:00:10]} Bxe4 {[%emt 0:07:51]} 20. Nxe4 {[%emt 0:00:03]} Qf5 {[%emt 0:00:07]} 21. Qe2 {[%emt 0:02:29]} Bf8 {[%emt 0:04:49]} 22. g4 {[%emt 0:06:04]} Qg6 {[%emt 0:00:15]} 23. Ng3 {[%emt 0:08:13]} Re8 {[%emt 0:06:58]} 24. Qe4 {[%emt 0:03:04]} Qxe4 {[%emt 0:03:16]} 25. Nxe4 {[%emt 0:00:19]} Rf4 {[%emt 0:00:57]} 26. f3 {[%emt 0:00:32]} Bg7 {[%emt 0:00:18]} 27. Rac1 {[%emt 0:01:30]} Ref8 {[%emt 0:05:56]} 28. Rc3 {[%emt 0:08:26]} h5 $2 {[%emt 0:03:41] [#] Loses the game.} (28... Ra8 $16 29. c5 dxc5) 29. g3 $18 {[%emt 0:00:40]} ({Weaker is} 29. Nxg5 e4 30. Rcc1 Bb2 $14) ({Not} 29. gxh5 g4 30. c5 bxc5 $16) 29... R4f7 {[%emt 0:00:04]} 30. gxh5 {[%emt 0:00:16]} g4 {[%emt 0:00:29]} 31. Kg2 {[%emt 0:07:07]} Rf5 {[%emt 0:01:40]} 32. Rf2 {[%emt 0:03:22]} Rxh5 {[%emt 0:00:33]} 33. fxg4 {[%emt 0:00:12]} Rxf2+ {[%emt 0:00:04]} 34. Nxf2 {[%emt 0:00:05] KRB-KRN} Rg5 {[%emt 0:00:05]} 35. Ra3 {[%emt 0:00:58]} e4 {[%emt 0:02:19]} 36. Nxe4 {[%emt 0:00:11]} Rxg4 {[%emt 0:00:04]} (36... Re5) 37. Kf3 {[%emt 0:00:09]} Rg6 {[%emt 0:00:15]} 38. Rxa7 {Weighted Error Value: White=0.09 (flawless) /Black=0.40} 1-0

[Event "Olomouc Chess Summer-IM 2022"]
[Site "Olomouc"]
[Date "2022.08.20"]
[Round "9.14"]
[White "Shubin, Daniel"]
[Black "Paseka, Matyas"]
[Result "0-1"]
[ECO "B90"]
[WhiteElo "2120"]
[BlackElo "2218"]
[Annotator "TA"]
[PlyCount "74"]
[EventDate "2022.08.10"]
[EventCountry "CZE"]
[SourceTitle "playchess.com"]
[Source "ChessBase"]
[SourceQuality "1"]
[TimeControl "40/5400+30:1800+30"]

{[%evp 12,74,22,18,29,31,20,0,0,9,0,12,0,-1,31,0,25,13,35,8,14,0,37,-21,-28,-31,-25,-24,0,0,0,-18,0,0,0,-27,0,0,0,0,0,0,0,0,0,0,0,-157,-156,-126,-8,-28,-18,-1002,-428,-984,-983,-999,-960,-1688,-1489,-1372,-1263,-29995,-1068]} 1. e4 {[%emt 0:03:22]} c5 {[%emt 0:00:10]} 2. Nf3 {[%emt 0:00:18]} d6 {[%emt 0:00:07]} 3. d4 {[%emt 0:00:05]} cxd4 {[%emt 0:00:04]} 4. Nxd4 {[%emt 0:00:17]} Nf6 {[%emt 0:00:06]} 5. Nc3 {[%emt 0:00:04]} a6 {[%emt 0:00:06]} 6. Nb3 {[%emt 0:00:18]} e5 {[%emt 0:01:37]} 7. Bg5 {[%emt 0:00:04]} Be6 {[%emt 0:01:41] seems to push 7...Be7 aside. B94: Sicilian Najdorf: 6 Bg5 Nbd7.} 8. Bxf6 {[%emt 0:00:42]} Qxf6 {[%emt 0:00:17]} 9. Nd5 {[%emt 0:00:04]} Qd8 {[%emt 0:01:07] The position is equal.} 10. Qd3 {[%emt 0:02:10]} Nd7 {[%emt 0:01:22]} 11. O-O-O {[%emt 0:00:46]} Rc8 {[%emt 0:02:35]} 12. Kb1 {[%emt 0:02:22]} Nb6 {[%emt 0:03:08]} 13. Ne3 {[%emt 0:10:58] [#]} Nc4 $146 {[%emt 0:01:43]} ({Predecessor:} 13... Be7 14. g3 O-O 15. h4 Qc7 16. Bg2 Nc4 17. Rhe1 a5 18. a4 b5 19. axb5 a4 {1-0 (90) Gurvich,V (2230)-Andrews,T (2244) Chess.com INT 2020}) 14. Nxc4 {[%emt 0:02:49]} Bxc4 {[%emt 0:00:27]} 15. Qd2 {[%emt 0:01:44]} (15. Qg3 $5 {[%cal Rf1c4]}) 15... Be6 {[%emt 0:00:56]} 16. f4 {[%emt 0:15:02]} Be7 {[%emt 0:05:12][%cal Bf8e7,Be7f6,Bf6e5][%mdl 32]} 17. Bd3 {[%emt 0:08:47]} (17. f5 $14 Bd7 18. g3) 17... exf4 $11 {[%emt 0:05:26]} 18. Qxf4 {[%emt 0:02:19]} Bf6 {[%emt 0:02:04] Prevents e5.} 19. c3 {[%emt 0:00:42]} Qb6 {[%emt 0:02:35][%cal Of6c3] Against Nd4} 20. Bc2 {[%emt 0:00:51]} Be5 {[%emt 0:00:41]} 21. Qf3 {[%emt 0:02:30]} O-O {[%emt 0:02:26]} 22. Nd4 {[%emt 0:01:47]} Bc4 {[%emt 0:07:58]} 23. Bb3 {[%emt 0:01:52]} a5 {[%emt 0:03:34]} 24. Nf5 {[%emt 0:02:55] Hoping for Ne7+.} Bxb3 {[%emt 0:17:37] A strong pair of Bishops.} 25. Ne7+ {[%emt 0:00:42]} Kh8 {[%emt 0:00:06][%cal Oc8c3] White must now prevent ...Rxc3!} 26. Nxc8 {[%emt 0:00:17]} Rxc8 {[%emt 0:00:06]} 27. axb3 {[%emt 0:00:05]} Qxb3 {[%emt 0:00:06] Strongly threatening ...a4.} 28. Qf5 {[%emt 0:06:45][%cal Rf5c8]} Rc5 {[%emt 0:04:05]} 29. Qd7 {[%emt 0:04:29]} (29. Rd5 $11 Bxc3 30. Qf2) 29... h6 $17 {[%emt 0:02:19] ( -> ...Bxc3)} 30. Rd2 {[%emt 0:10:09] [#]} Rxc3 $40 {[%emt 0:02:27][%mdl 128] Black is up to no good.} (30... Bxc3 $1 $17 31. Rf2 Bd4) 31. Rf1 {[%emt 0:01:47]} Qc4 {[%emt 0:06:09] Dancing on a razor blade.} 32. Qxf7 {[%emt 0:02:07][%mdl 8192] [#] This move loses the game for White.} (32. Re1 $11) 32... Rc1+ $3 $19 {[%emt 0:00:06][%mdl 576] Deflection} 33. Rxc1 {[%emt 0:02:54]} Qxf7 {[%emt 0:00:04]} 34. Rc8+ {[%emt 0:01:38]} Kh7 {[%emt 0:00:05]} 35. Ra8 {[%emt 0:02:21]} Qf1+ {[%emt 0:00:32]} 36. Ka2 {[%emt 0:00:01]} Qc4+ {[%emt 0:00:09]} 37. Ka1 {[%emt 0:00:03]} Qc1+ {[%emt 0:00:08] Weighted Error Value: White=0.78/Black=0.18 (very precise)} 0-1

[Event "Olomouc Chess Summer-IM 2022"]
[Site "Olomouc"]
[Date "2022.08.20"]
[Round "9.15"]
[White "Mica, Marek"]
[Black "Nemec, Jachym"]
[Result "1/2-1/2"]
[ECO "A15"]
[WhiteElo "2304"]
[BlackElo "2357"]
[Annotator "TA"]
[PlyCount "39"]
[EventDate "2022.08.10"]
[EventCountry "CZE"]
[SourceTitle "playchess.com"]
[Source "ChessBase"]
[SourceQuality "1"]
[TimeControl "40/5400+30:1800+30"]

{[%evp 17,39,50,66,19,12,19,37,22,32,23,23,15,15,10,37,37,44,8,10,8,7,0,18,0]} 1. c4 {[%emt 0:00:07]} Nf6 {[%emt 0:01:34]} 2. Nf3 {[%emt 0:00:17]} c5 {[%emt 0:02:34]} 3. g3 {[%emt 0:01:27]} d5 {[%emt 0:00:47]} 4. cxd5 {[%emt 0:00:24]} Nxd5 {[%emt 0:00:04]} 5. Bg2 {[%emt 0:01:11]} Nc6 {[%emt 0:00:04]} 6. d4 {[%emt 0:01:19]} cxd4 {[%emt 0:05:11]} 7. Nxd4 {[%emt 0:00:22]} e6 {[%emt 0:00:20]} 8. Nxc6 {[%emt 0:02:35]} bxc6 {[%emt 0:00:04]} 9. O-O {[%emt 0:00:28]} Be7 {[%emt 0:01:31]} 10. a3 {[%emt 0:15:21] E01: Catalan: Early deviations.} (10. e4 $14) 10... O-O $11 {[%emt 0:00:39]} 11. Qc2 {[%emt 0:01:16] [#]} Qc7 $146 {[%emt 0:08:01]} ({Predecessor:} 11... a5 12. Rd1 Qb6 13. Nd2 Ba6 14. Nc4 Qa7 15. Nxa5 Bxe2 16. Qxe2 Qxa5 17. Bd2 Qb6 18. b4 c5 19. Bxd5 Bf6 20. Bxa8 Bxa1 21. Rxa1 Rxa8 22. Be3 {1-0 (22) Rottenwohrer Suarez,J (2189)-Matveeva,O (2145) Chess.com INT 2021}) 12. Nc3 {[%emt 0:03:07] White is slightly better.} Rd8 {[%emt 0:07:47]} 13. Nxd5 {[%emt 0:04:45]} exd5 {[%emt 0:00:04]} 14. Rd1 {[%emt 0:00:31]} Be6 {[%emt 0:01:16]} 15. Be3 {[%emt 0:03:44]} Qb7 {[%emt 0:02:45]} 16. b4 {[%emt 0:08:28]} a5 {[%emt 0:10:24]} 17. Bc5 {[%emt 0:02:42]} axb4 {[%emt 0:12:57] The position is equal.} 18. axb4 {[%emt 0:00:20]} Bxc5 {[%emt 0:13:29]} 19. Qxc5 {[%emt 0:00:32]} Rab8 {[%emt 0:00:36]} 20. e4 {[%emt 0:05:31] Weighted Error Value: White=0.13 (very precise) /Black=0.07 (flawless)} 1/2-1/2